Cogmind - Beta 11.1 @@@ ROGUE MODE // 2022.12.19 @ 23:00:32 Player: hinoya Result: Destroyed by C-17 Slicer with Blade Saw Performance ------------- Evolutions (4) 2000 Regions Visited (12) 2400 Robots Destroyed (7) 35 Value Destroyed (189) 189 Prototype IDs (1) 20 Alien Tech Used (0) 0 Bonus (1070) 1070 TOTAL SCORE: 5714 Bonus ------- Pacifist 270 Entered DSFs 500 Aligned with FarCom 300 Cogmind --------- Core Integrity 0/850 Matter 30/300 Energy 43/150 System Corruption 6% Temperature Cool (0) Movement Walking (190) Ox1 Location -6/DSF Parts ------- > --- POWER (2) -------- Micro Nuclear Core > --- PROPULSION (5) --- Armored Leg > --- UTILITY (6) ------ (None) > --- WEAPON (2) ------- Proton Cannon Mini Smartbomb Launcher > --- INVENTORY (5) ---- (None) Peak State ------------ > --- POWER ------------ Micro Nuclear Core > --- PROPULSION ------- Improved Hover Unit Airjet Airjet Airjet Gravmag System > --- UTILITY ---------- Medium Storage Unit Compact Matter Pod Visual Processing Unit Advanced Terrain Scan Processor ECM Suite > --- WEAPON ----------- Improved Grenade Launcher Remote Datajack > --- INVENTORY -------- Micro Nuclear Core Wheel Flight Unit Flight Unit Flight Unit [Rating: 37] Favorites ----------- Power Ion Engine Engine Ion Engine Power Core Micro Nuclear Core Propulsion Aluminum Leg Leg Aluminum Leg Wheel Wheel Hover Unit Airjet Flight Unit Flight Unit Utility Visual Processing Unit Device ECM Suite Storage Small Storage Unit Processor Visual Processing Unit Weapon Light Assault Rifle Energy Gun EM Pulse Gun Energy Cannon Proton Cannon Ballistic Gun Light Assault Rifle Launcher Grenade Launcher Special Weapon Remote Datajack Special Melee Weapon Datajack Build | -11 -10 -10 -10 -9 -8 -7 -7 -7 -6 -6 -6 -6 ------- Run | Scr Mat Min Exi Min Mat Fac Was Fac Fac Was Fac DSF Slots Evolved 8 | . . . . . 4 2 . . 2 . . . Power 1 | . . . . . . . . . 1 . . . Propulsion 3 | . . . . . 3 . . . . . . . Utility 4 | . . . . . 1 2 . . 1 . . . Weapon . | . . . . . . . . . . . . . Parts Attached 35 | . 1 . . . 15 9 . . 4 2 . 4 Power 3 | . . . . . 2 . . . . . . 1 Engine . | . . . . . . . . . . . . . Core 3 | . . . . . 2 . . . . . . 1 Reactor . | . . . . . . . . . . . . . Propulsion 15 | . . . . . 8 2 . . 4 . . 1 Treads . | . . . . . . . . . . . . . Leg 1 | . . . . . . . . . . . . 1 Wheel 2 | . . . . . 1 . . . 1 . . . Hover 8 | . . . . . 6 2 . . . . . . Flight 4 | . . . . . 1 . . . 3 . . . Utility 7 | . 1 . . . 2 3 . . . 1 . . Device 2 | . . . . . 2 . . . . . . . Storage 2 | . . . . . . 2 . . . . . . Processor 3 | . 1 . . . . 1 . . . 1 . . Hackware . | . . . . . . . . . . . . . Protection . | . . . . . . . . . . . . . Artifact . | . . . . . . . . . . . . . Weapon 10 | . . . . . 3 4 . . . 1 . 2 Energy Gun . | . . . . . . . . . . . . . Energy Cannon 1 | . . . . . . . . . . . . 1 Ballistic Gun . | . . . . . . . . . . . . . Ballistic Cannon . | . . . . . . . . . . . . . Launcher 5 | . . . . . 2 2 . . . . . 1 Special Weapon 2 | . . . . . . 1 . . . 1 . . Impact Weapon . | . . . . . . . . . . . . . Slashing Weapon . | . . . . . . . . . . . . . Piercing Weapon . | . . . . . . . . . . . . . Special Melee Weapon 2 | . . . . . 1 1 . . . . . . Unidentified Prototypes 1 | . . . . . . . . . . . . 1 Parts Lost 16 | . . . . . . 1 . . 12 3 . . Power 1 | . . . . . . . . . 1 . . . Propulsion 8 | . . . . . . . . . 7 1 . . Utility 5 | . . . . . . . . . 3 2 . . Weapon 2 | . . . . . . 1 . . 1 . . . Highest Loss Streak 12 | . . . . . . 1 . . 12 2 . . To Critical Strikes . | . . . . . . . . . . . . . Average Slot Usage (%) 84 | . 93 100 100 100 85 99 88 84 53 16 . 3 Engine 7 | . 14 14 14 14 4 . . . . . . . Core 2 | . . . . . 3 7 7 7 4 . . . Leg 14 | . 28 28 28 28 8 . . . . . . . Hover 11 | . . . . . 22 38 34 30 15 . . . Device 2 | . . . . . 7 7 7 7 5 . . . Storage 12 | . 14 14 14 14 9 18 15 15 11 2 . . Processor 11 | . 8 14 14 14 9 11 15 15 10 7 . . Energy Gun 7 | . 14 14 14 14 4 . . . . . . . Ballistic Gun 7 | . 14 14 14 14 5 . . . . . . . Launcher 2 | . . . . . 4 10 7 7 3 . . . Special Melee Weapon 1 | . . . . . 3 2 . . . . . . Naked Turns 227 | . . . . . . . . . . 22 140 65 Heaviest Build 33 | 13 13 13 13 13 18 33 28 25 25 13 . 14 Greatest Support 40 | 20 20 20 20 20 36 40 40 23 31 10 3 16 Greatest Overweight (x) 6 | . . . . . 1 4 1 1 6 1 . . Average Overweight (x) . | . . . . . . . . 1 . . . . Largest Inventory Capacity 10 | 8 8 8 8 8 8 10 10 10 10 10 5 5 Average Capacity 8 | 8 8 8 8 8 8 10 10 10 10 7 5 5 Most Carried 9 | 6 8 8 8 8 8 8 9 9 9 6 5 5 Average Carried 6 | 6 6 7 8 8 6 5 8 9 8 4 4 4 Final Capacity 10 | 8 8 8 8 8 8 10 10 10 10 5 5 5 Final Carried 9 | 6 8 8 8 8 8 5 9 9 5 4 5 . Class Distribution -------------------- 100% | Mutant Dominant Class ---------------- Mutant | -10/Materials Mutant | -10/Mines Mutant | -10/Exiles Mutant | -9/Mines Mutant | -8/Materials Mutant | -7/Factory Mutant | -7/Waste Mutant | -7/Factory Mutant | -6/Factory Mutant | -6/Waste Mutant | -6/Factory Mutant | -6/DSF Resources | -11 -10 -10 -10 -9 -8 -7 -7 -7 -6 -6 -6 -6 ----------- Run | Scr Mat Min Exi Min Mat Fac Was Fac Fac Was Fac DSF Matter Collected 328 | 200 6 . . . 43 9 . . . . . 70 Remotely . | . . . . . . . . . . . . . Salvage Created 161 | . . . . . 152 9 . . . . . . Parts 20 | . . . . . 20 . . . . . . . Haulers Intercepted . | . . . . . . . . . . . . . Recyclers Shooed . | . . . . . . . . . . . . . Parts Field Recycled . | . . . . . . . . . . . . . Retrieved Matter . | . . . . . . . . . . . . . Parts Self-Destructed . | . . . . . . . . . . . . . Prevented . | . . . . . . . . . . . . . Kills | -11 -10 -10 -10 -9 -8 -7 -7 -7 -6 -6 -6 -6 ------- Run | Scr Mat Min Exi Min Mat Fac Was Fac Fac Was Fac DSF Combat Hostiles Destroyed 6 | . . . . . 5 1 . . . . . . Guns 2 | . . . . . 2 . . . . . . . AOE 4 | . . . . . 3 1 . . . . . . Classes Destroyed 4 | . . . . . 4 . . . . . . . Builder 1 | . . . . . 1 . . . . . . . Swarmer 3 | . . . . . 3 . . . . . . . Sentry 2 | . . . . . 1 1 . . . . . . Hunter 1 | . . . . . 1 . . . . . . . Best Kill Streak 4 | . . . . . 4 1 . . . . . . Combat Bots Only 3 | . . . . . 3 1 . . . . . . Max Kills in Single Turn 2 | . . . . . 2 1 . . . . . . Gunslinging . | . . . . . . . . . . . . . Exploded 1 | . . . . . 1 1 . . . . . . Melee . | . . . . . . . . . . . . . Uniques/NPCs Destroyed . | . . . . . . . . . . . . . Combat | -11 -10 -10 -10 -9 -8 -7 -7 -7 -6 -6 -6 -6 -------- Run | Scr Mat Min Exi Min Mat Fac Was Fac Fac Was Fac DSF Damage Taken 1918 | . . . . . 369 132 . . 752 143 17 505 Core 939 | . . . . . 63 23 . . 243 122 17 471 Absorbed by Shields 25 | . . . . . . . . . . . . 25 Core Remaining (%) 96 | 100 . . . 100 88 . . 96 . . . . Volleys Fired 22 | . . . . . 14 7 . . . . . 1 Largest 2 | . . . . . 2 1 . . . . . 1 Hottest 75 | . . . . . 60 36 . . . . . 75 Shots Fired 33 | . . . . . 25 7 . . . . . 1 Gun 22 | . . . . . 22 . . . . . . . Cannon 1 | . . . . . . . . . . . . 1 Launcher 9 | . . . . . 3 6 . . . . . . Special 1 | . . . . . . 1 . . . . . . Kinetic 11 | . . . . . 11 . . . . . . . Thermal . | . . . . . . . . . . . . . Explosive 9 | . . . . . 3 6 . . . . . . Electromagnetic 12 | . . . . . 11 . . . . . . 1 Robot Hit Streak 7 | . . . . . 7 4 . . . . . 5 Robot Miss Streak 1 | . . . . . 1 1 . . . . . . Penetration Max . | . . . . . . . . . . . . . Secondary Targets . | . . . . . . . . . . . . . Shots Hit Robots 33 | . . . . . 21 11 . . . . . 1 Core Hits 17 | . . . . . 12 5 . . . . . . Critical Kills . | . . . . . . . . . . . . . Critical Parts Destroyed . | . . . . . . . . . . . . . Critical Strikes . | . . . . . . . . . . . . . Melee Attacks 12 | . . . . . 7 5 . . . . . . Impact . | . . . . . . . . . . . . . Slashing . | . . . . . . . . . . . . . Piercing . | . . . . . . . . . . . . . Sneak Attacks 5 | . . . . . . 5 . . . . . . Combat Hostiles . | . . . . . . . . . . . . . Follow-up Attacks . | . . . . . . . . . . . . . Damage Inflicted 524 | . 13 . . . 350 136 . . . . . 25 Guns 150 | . . . . . 150 . . . . . . . Cannons 25 | . . . . . . . . . . . . 25 Explosions 336 | . . . . . 200 136 . . . . . . Melee . | . . . . . . . . . . . . . Ramming 13 | . 13 . . . . . . . . . . . Kinetic 57 | . . . . . 57 . . . . . . . Thermal . | . . . . . . . . . . . . . Explosive 336 | . . . . . 200 136 . . . . . . Electromagnetic 118 | . . . . . 93 . . . . . . 25 Impact . | . . . . . . . . . . . . . Slashing . | . . . . . . . . . . . . . Piercing . | . . . . . . . . . . . . . Highest Corruption 9 | . . . . . . . 9 9 . 6 6 6 Average Corruption 7 | . . . . . . . 9 9 . 6 6 6 Corruption Purged . | . . . . . . . . . . . . . Corruption Blocked . | . . . . . . . . . . . . . Effects 12 | . . . . . . . 4 2 . 1 3 2 Message Errors 2 | . . . . . . . . . . 1 . 1 Matter Fused 2 | . . . . . . . . 1 . . 1 . Heat Flow Errors 3 | . . . . . . . 1 1 . . 1 . Energy Discharges 1 | . . . . . . . . . . . . 1 Parts Rejected 1 | . . . . . . . 1 . . . . . Data Loss (minor) 2 | . . . . . . . 2 . . . . . Data Loss (major) 1 | . . . . . . . . . . . 1 . Overload Shots . | . . . . . . . . . . . . . Overflow Damage 17 | . . . . . 17 . . . . . . . Projectiles . | . . . . . . . . . . . . . Explosions 17 | . . . . . 17 . . . . . . . Melee . | . . . . . . . . . . . . . Knockbacks . | . . . . . . . . . . . . . Impact . | . . . . . . . . . . . . . Kinetic . | . . . . . . . . . . . . . Secondary . | . . . . . . . . . . . . . Self-Inflicted Damage . | . . . . . . . . . . . . . Shots . | . . . . . . . . . . . . . Rammed . | . . . . . . . . . . . . . Targets Rammed 3 | . 3 . . . . . . . . . . . Kicked 3 | . 3 . . . . . . . . . . . Crushed . | . . . . . . . . . . . . . Highest Temperature 253 | . . . . . 25 7 137 253 19 . 95 . Average Temperature 54 | . . . . . 12 4 74 136 9 . 58 . Received Heat Transfer 477 | . . . . . 63 36 . . 378 . . . Siege Activations . | . . . . . . . . . . . . . Robots Corrupted . | . . . . . . . . . . . . . Combat Hostiles . | . . . . . . . . . . . . . Parts Fried . | . . . . . . . . . . . . . Impact Corruptions . | . . . . . . . . . . . . . Robots Melted . | . . . . . . . . . . . . . Combat Hostiles . | . . . . . . . . . . . . . Parts Melted . | . . . . . . . . . . . . . Heat Transferred . | . . . . . . . . . . . . . Parts Sabotaged . | . . . . . . . . . . . . . Parts Stolen . | . . . . . . . . . . . . . Parts Stripped . | . . . . . . . . . . . . . Power Chain Reactions . | . . . . . . . . . . . . . Missiles Intercepted . | . . . . . . . . . . . . . Alert | -11 -10 -10 -10 -9 -8 -7 -7 -7 -6 -6 -6 -6 ------- Run | Scr Mat Min Exi Min Mat Fac Was Fac Fac Was Fac DSF Peak Influence 200 | . 15 5 . . 200 69 54 37 17 15 53 37 Initial 37 | . . 5 . . . 13 24 37 17 . 3 37 Average 31 | . 10 5 . . 57 38 45 37 9 1 12 37 Maximum Alert Level 1 | . . . . . 1 . . . . . . . Low Security (%) 98 | 100 100 100 . 100 95 100 100 100 100 100 100 100 Level 1 1 | . . . . . 4 . . . . . . . Level 2 . | . . . . . . . . . . . . . Level 3 . | . . . . . . . . . . . . . Level 4 . | . . . . . . . . . . . . . Level 5 . | . . . . . . . . . . . . . High Security . | . . . . . . . . . . . . . Max Security . | . . . . . . . . . . . . . Squads Dispatched 3 | . 2 . . . . . . . . . . 1 Investigation 1 | . 1 . . . . . . . . . . . Extermination . | . . . . . . . . . . . . . Reinforcement 2 | . 1 . . . . . . . . . . 1 Assault . | . . . . . . . . . . . . . Garrison . | . . . . . . . . . . . . . Intercept . | . . . . . . . . . . . . . Searches Triggered . | . . . . . . . . . . . . . Construction Impeded . | . . . . . . . . . . . . . Haulers Reinforced . | . . . . . . . . . . . . . Active Scanning Responses . | . . . . . . . . . . . . . Cargo Convoy Interrupts . | . . . . . . . . . . . . . Stealth | -11 -10 -10 -10 -9 -8 -7 -7 -7 -6 -6 -6 -6 --------- Run | Scr Mat Min Exi Min Mat Fac Was Fac Fac Was Fac DSF Distress Signals 2 | . . . . . 2 . . . . . . . Communications Jammed . | . . . . . . . . . . . . . Distress Signals . | . . . . . . . . . . . . . Times Spotted 35 | . 2 . . . 9 2 5 . 5 6 1 5 Peak Tracking Total 6 | . 1 . . . 4 1 5 . 5 6 1 5 Tactical Retreats 4 | . . . . . 1 . 2 . . . 1 . Traps | -11 -10 -10 -10 -9 -8 -7 -7 -7 -6 -6 -6 -6 ------- Run | Scr Mat Min Exi Min Mat Fac Was Fac Fac Was Fac DSF Traps Triggered 6 | . . . . . 2 1 . . 1 . . 2 Indirectly . | . . . . . . . . . . . . . Trap Hack Attempts 10 | . . . . . . 10 . . . . . . Triggered . | . . . . . . . . . . . . . Disarmed 2 | . . . . . . 2 . . . . . . Reprogrammed . | . . . . . . . . . . . . . Reused . | . . . . . . . . . . . . . Traps Extracted . | . . . . . . . . . . . . . Installed . | . . . . . . . . . . . . . Triggered . | . . . . . . . . . . . . . Machines | -11 -10 -10 -10 -9 -8 -7 -7 -7 -6 -6 -6 -6 ---------- Run | Scr Mat Min Exi Min Mat Fac Was Fac Fac Was Fac DSF Machines Disabled . | . . . . . . . . . . . . . Max in Single Turn . | . . . . . . . . . . . . . Machines Sabotaged . | . . . . . . . . . . . . . Garrisons Compromised . | . . . . . . . . . . . . . Overloaded Fab Kills . | . . . . . . . . . . . . . Hacking | -11 -10 -10 -10 -9 -8 -7 -7 -7 -6 -6 -6 -6 --------- Run | Scr Mat Min Exi Min Mat Fac Was Fac Fac Was Fac DSF Machines Accessed 9 | . . . 4 . 3 1 . . . . 1 . Terminals 5 | . . . . . 3 1 . . . . 1 . Fabricators . | . . . . . . . . . . . . . Repair Stations . | . . . . . . . . . . . . . Recycling Units . | . . . . . . . . . . . . . Scanalyzers . | . . . . . . . . . . . . . Garrison Access . | . . . . . . . . . . . . . Total Hacks 58 | . . . 49 . 6 2 . . . . 1 . Successful 53 | . . . 49 . 2 1 . . . . 1 . Failed 5 | . . . . . 4 1 . . . . . . Catastrophic 1 | . . . . . 1 . . . . . . . Database Lockouts . | . . . . . . . . . . . . . Manual 4 | . . . 4 . . . . . . . . . Terminals 9 | . . . . . 6 2 . . . . 1 . Fabricators . | . . . . . . . . . . . . . Repair Stations . | . . . . . . . . . . . . . Recycling Units . | . . . . . . . . . . . . . Scanalyzers . | . . . . . . . . . . . . . Garrison Access . | . . . . . . . . . . . . . Terminal Hacks 53 | . . . 49 . 2 1 . . . . 1 . Record 49 | . . . 49 . . . . . . . . . Open DSF 2 | . . . . . . 1 . . . . 1 . Recall Investigation 1 | . . . . . 1 . . . . . . . Hauler Manifests 1 | . . . . . 1 . . . . . . . Fabricator Hacks . | . . . . . . . . . . . . . Repair Station Hacks . | . . . . . . . . . . . . . Recycling Unit Hacks . | . . . . . . . . . . . . . Scanalyzer . | . . . . . . . . . . . . . Garrison Access Hacks . | . . . . . . . . . . . . . Unauthorized Hacks . | . . . . . . . . . . . . . Terminals . | . . . . . . . . . . . . . Fabricators . | . . . . . . . . . . . . . Repair Stations . | . . . . . . . . . . . . . Recycling Units . | . . . . . . . . . . . . . Scanalyzers . | . . . . . . . . . . . . . Garrison Access . | . . . . . . . . . . . . . Data Cores Recovered . | . . . . . . . . . . . . . Used . | . . . . . . . . . . . . . Hacking Detections 1 | . . . . . 1 . . . . . . . Full Trace Events . | . . . . . . . . . . . . . Feedback Events . | . . . . . . . . . . . . . Feedback Blocked . | . . . . . . . . . . . . . Robot Schematics Acquired . | . . . . . . . . . . . . . Robots Built . | . . . . . . . . . . . . . Authchips . | . . . . . . . . . . . . . Time . | . . . . . . . . . . . . . Total Robot Build Rating . | . . . . . . . . . . . . . Part Schematics Acquired . | . . . . . . . . . . . . . Parts Built . | . . . . . . . . . . . . . Authchips . | . . . . . . . . . . . . . Time . | . . . . . . . . . . . . . Total Part Build Rating . | . . . . . . . . . . . . . Parts Repaired . | . . . . . . . . . . . . . Time . | . . . . . . . . . . . . . Parts Recycled . | . . . . . . . . . . . . . Recycled Matter . | . . . . . . . . . . . . . Retrieved Matter . | . . . . . . . . . . . . . Retrieved Components . | . . . . . . . . . . . . . Parts Scanalyzed . | . . . . . . . . . . . . . Part Schematics Acquired . | . . . . . . . . . . . . . Parts Damaged . | . . . . . . . . . . . . . Bothacking | -11 -10 -10 -10 -9 -8 -7 -7 -7 -6 -6 -6 -6 ------------ Run | Scr Mat Min Exi Min Mat Fac Was Fac Fac Was Fac DSF Used RIF Installer . | . . . . . . . . . . . . . Robots Hacked 4 | . . . . . 1 3 . . . . . . Non-combat 4 | . . . . . 1 3 . . . . . . Combat . | . . . . . . . . . . . . . Robot Hacks Applied 6 | . . . . . 2 4 . . . . . . parse_system 3 | . . . . . 2 1 . . . . . . no_distress 1 | . . . . . . 1 . . . . . . find_chute 1 | . . . . . . 1 . . . . . . find_station 1 | . . . . . . 1 . . . . . . Relay Couplers Released . | . . . . . . . . . . . . . Fabnet Peak Effective % . | . . . . . . . . . . . . . Robots Rewired . | . . . . . . . . . . . . . Allies Hacked . | . . . . . . . . . . . . . Hacks Repelled . | . . . . . . . . . . . . . Allies | -11 -10 -10 -10 -9 -8 -7 -7 -7 -6 -6 -6 -6 -------- Run | Scr Mat Min Exi Min Mat Fac Was Fac Fac Was Fac DSF Total Allies . | . . . . . . . . . . . . . Largest Group . | . . . . . . . . . . . . . Highest-Rated Group . | . . . . . . . . . . . . . Highest-Rated Ally . | . . . . . . . . . . . . . Total Orders . | . . . . . . . . . . . . . Ally Attacks . | . . . . . . . . . . . . . Total Damage . | . . . . . . . . . . . . . Kills . | . . . . . . . . . . . . . Allies Corrupted . | . . . . . . . . . . . . . Allies Melted . | . . . . . . . . . . . . . Intel | -11 -10 -10 -10 -9 -8 -7 -7 -7 -6 -6 -6 -6 ------- Run | Scr Mat Min Exi Min Mat Fac Was Fac Fac Was Fac DSF Robot Analysis Total . | . . . . . . . . . . . . . Derelict Logs Recovered . | . . . . . . . . . . . . . Drone Launches . | . . . . . . . . . . . . . Drone Recoveries . | . . . . . . . . . . . . . Exploration | -11 -10 -10 -10 -9 -8 -7 -7 -7 -6 -6 -6 -6 ------------- Run | Scr Mat Min Exi Min Mat Fac Was Fac Fac Was Fac DSF Turns Passed 2830 | 33 209 86 972 80 465 395 112 98 62 107 140 71 Spaces Moved 3042 | 28 165 71 810 67 561 495 168 88 85 163 272 69 Core 455 | . . . . . . . . . 4 111 272 68 Treads . | . . . . . . . . . . . . . Legs 1285 | 28 165 71 810 67 143 . . . . . . 1 Wheels 58 | . . . . . . . . . 6 52 . . Hover 1243 | . . . . . 418 495 168 88 74 . . . Flight 1 | . . . . . . . . . 1 . . . Fastest Speed 44 | 120 120 120 120 120 44 44 44 112 48 50 50 50 Average Speed 86 | 120 120 120 120 120 68 69 65 112 68 64 50 51 Slowest Speed 350 | 120 120 120 120 120 140 300 112 112 350 95 50 120 Overloaded Moves . | . . . . . . . . . . . . . Propulsion Burnouts . | . . . . . . . . . . . . . Robots Hopped . | . . . . . . . . . . . . . Cave-ins Triggered . | . . . . . . . . . . . . . Exploration Rate (%) 32 | 3 27 29 85 23 37 8 92 4 3 85 2 28 Regions Visited 12 Branch Regions 3 Pre-discovered Areas 2 | . . . 1 1 . . . . . . . . Known Exits Taken 1 | . . . . . . . . . . . 1 . Unknown Exits Taken 7 | 1 1 1 1 1 1 . . 1 . . . . Scrap Searched 2 | . . 2 . . . . . . . . . . Spaces Dug 5 | . . . . . 5 . . . . . . . Terrain Destroyed 15 | . . . . . 14 1 . . . . . . Melee . | . . . . . . . . . . . . . Projectile . | . . . . . . . . . . . . . AOE 15 | . . . . . 14 1 . . . . . . Terrain Rammed . | . . . . . . . . . . . . . Walls Destroyed . | . . . . . . . . . . . . . Machines Disabled . | . . . . . . . . . . . . . Actions | -11 -10 -10 -10 -9 -8 -7 -7 -7 -6 -6 -6 -6 --------- Run | Scr Mat Min Exi Min Mat Fac Was Fac Fac Was Fac DSF Total 3197 | 27 177 72 810 66 614 538 171 87 89 165 276 105 Wait 1 | . . . 1 . . . . . . . . . Move 3032 | 27 164 70 809 66 560 495 167 87 85 162 271 69 Hop . | . . . . . . . . . . . . . Pick Up 27 | . 6 1 . . 8 5 3 . . 1 3 . Fast Attach 6 | . . . . . 6 . . . . . . . Attach 28 | . 1 . . . 8 9 . . 4 2 . 4 Detach 6 | . . . . . 3 2 1 . . . . . Swap 1 | . . . . . 1 . . . . . . . Drop 19 | . 3 1 . . 7 5 . . . . 2 1 Fire 22 | . . . . . 14 7 . . . . . 1 Melee 12 | . . . . . 7 5 . . . . . . Ram . | . . . . . . . . . . . . . Kick 3 | . 3 . . . . . . . . . . . Crush . | . . . . . . . . . . . . . Escape Stasis 28 | . . . . . . . . . . . . 28 Rewire 2 | . . . . . . . . . . . . 2 Trap 10 | . . . . . . 10 . . . . . . Miscellaneous . | . . . . . . . . . . . . . Route ------- -11/Scrapyard -10/Materials (discovered 2 exits: [*Mat] / [*Min]) -10/Mines -10/Exiles -9/Mines -8/Materials -7/Factory -7/Waste -7/Factory -6/Factory -6/Waste -6/Factory -6/DSF History --------- Turn | Location | Event 1 | -11/Scrapyard | Discovered new exit (range 3) 34 | -11/Scrapyard | Entered Materials 104 | -10/Materials | Met 8R-AWN 163 | -10/Materials | Discovered new exit (range 13) 214 | -10/Materials | Discovered new exit (range 17) 243 | -10/Materials | Entered Mines 245 | -10/Mines | Followed 8R-AWN into the Mines 304 | -10/Mines | Build established: Mutant 322 | -10/Mines | Discovered new exit (range 5) 329 | -10/Mines | Entered Exiles 368 | -10/Exiles | Welcomed by 8R-AWN 403 | -10/Exiles | Met EX-HEX 418 | -10/Exiles | Learned about 8R-AWN's background 515 | -10/Exiles | Met EX-DEC 561 | -10/Exiles | Visited The Gauntlet 742 | -10/Exiles | Learned location of Zion (-6) 782 | -10/Exiles | Met EX-BIN 804 | -10/Exiles | Aligned with FarCom system 806 | -10/Exiles | Given EX-Vault access code 1288 | -10/Exiles | Discovered new exit (range 14) 1301 | -10/Exiles | Entered Mines 1319 | -9/Mines | Learned location of Storage (-7) 1342 | -9/Mines | Discovered new exit (range 12) 1381 | -9/Mines | Entered Materials 1381 | -8/Materials | Evolved 4 slots: Propulsion x3, Utility x1 1836 | -8/Materials | Discovered new exit (range 18) 1846 | -8/Materials | Entered Factory 1846 | -7/Factory | Evolved 2 slots: Utility x2 2241 | -7/Factory | Sucked down chute 2241 | -7/Factory | Entered Waste 2250 | -7/Waste | Found Prototype Launcher 2256 | -7/Waste | EMP discharged 2259 | -7/Waste | Spotted C-40 Crusher 2266 | -7/Waste | Spotted C-40 Crusher 2267 | -7/Waste | Spotted C-40 Crusher 2278 | -7/Waste | Spotted C-40 Crusher 2278 | -7/Waste | Spotted C-40 Crusher 2338 | -7/Waste | Discovered new exit (range 12) 2338 | -7/Waste | Spotted C-40 Crusher 2353 | -7/Waste | Entered Factory 2425 | -7/Factory | Discovered new exit (range 13) 2451 | -7/Factory | Entered another Factory area 2451 | -6/Factory | Evolved 2 slots: Power x1, Utility x1 2513 | -6/Factory | Sucked down chute 2513 | -6/Factory | Entered Waste 2528 | -6/Waste | EMP discharged 2538 | -6/Waste | Lost 12 parts (1p7n3u1w) 2557 | -6/Waste | Spotted C-40 Crusher 2559 | -6/Waste | Spotted C-40 Crusher 2562 | -6/Waste | Spotted C-40 Crusher 2565 | -6/Waste | Crushed by Compactor (1 part destroyed, 2 dropped) 2591 | -6/Waste | Spotted C-40 Crusher 2598 | -6/Waste | Crushed by Compactor (1 part destroyed) 2598 | -6/Waste | Spotted C-40 Crusher 2598 | -6/Waste | Spotted C-40 Crusher 2612 | -6/Waste | Discovered new exit (range 16) 2620 | -6/Waste | Entered Factory 2759 | -6/Factory | Identified exit to DSF 2760 | -6/Factory | Entered DSF 2790 | -6/DSF | Core integrity fell below 50% 2796 | -6/DSF | Additional patrols routed to DSF 2818 | -6/DSF | Core integrity fell below 20% 2829 | -6/DSF | Identified Mni. Smartbomb Launcher 2831 | -6/DSF | Destroyed by C-17 Slicer with Blade Saw Last Messages --------------- 02804_ Field strength at 58. 02805_ Field strength at 52. 02806_ Field strength at 46. 02807_ ANQ%/SKBZ=7CGNE%KVTFDP 02807_ Field strength at 40. 02808_ Field strength at 34. 02809_ Field strength at 28. 02810_ Field strength at 9. 02811_ Field strength at 3. 02811_ Stasis field depleted. 02815_ Knocked back. 02816_ X-72 Disruptor destroyed. 02816_ Matter Repository disabled. 02816_ Knocked back. 02817_ Acquired 57 matter. 02817_ Knocked back. 02817_ C-17 Slicer knocked back. 02821_ Acquired 8 matter. 02829_ Identified Mni. Smartbomb Launcher. [Achievement: 5k Club] Map ----- +----------------------------------------------------+ | | | ??????????????????????????????????? | | ??????????????????????????????????? | | ??????????????????????????????????? | | ??????????????????????????????????? | | ?????????""#??????????????????????? | | ?????????#"#??????????????????????? | | ??????####"##?????????????????????? | | ??????#"""""#?###??##?????????????? | | ??????#"""""##==# #//[[[[???????? | | ???#"##" ???????? | | ???#""""" *[[ ???????? | | ????###"%!! ## # ##????????????? | | ??????### !##???#?????????????????? | | ???????## ###????????????????????? | | ???????# ==#????????????????????? | | ???????# ==#????????????????????? | | ???????## ###????????????????????? | | ???????# ==#????????????????????? | | ???????# ^^==#????????????????????? | | ???????# H=#????????????????????? | | ??????### ;# ###??##?????????????? | | ??????# ! ;# #!!!#?????????????? | | ??????#% ;# ;!!!## ????????? | | ??????#!!ccc ????????? | | ??????#!!c@ ????????? | | ??????#!! ????????? | | ??????# ##!!!#[[[##A ????????? | | ??????# #?!!!#[[[#?????????????? | | ??????######??###?###?????????????? | | ??????????????????????????????????? | | ??????????????????????????????????? | | ??????????????????????????????????? | | ??????????????????????????????????? | | ??????????????????????????????????? | | ??????????????????????????????????? | | ??????????????????????????????????? | | ??????????????????????????????????? | | ??????????????????????????????????? | | ??????????????????????????????????? | | ??????????????????????????????????? | | ??????????????????????????????????? | | ??????????????????????????????????? | | ??????????????????????????????????? | | ??????????????????????????????????? | | ??????????????????????????????????? | | ??????????????????????????????????? | | ??????????????????????????????????? | | ??????????????????????????????????? | | ??????????????????????????????????? | +----------------------------------------------------+ Best States ------------- Heat Dissipation 37 Energy Generation 15 Energy Capacity 250 Matter Stores 300 Matter Capacity 450 Sight Range 18 Terrain Scan Density 210 ECM Strength 1 Evasion (%) 56 Salvage Targeting 3 Item Schematics ----------------- None Robot Schematics ------------------ None Fabricated ------------ Nothing Alien Tech Used ----------------- None Achievements -------------- 5k Club Below Librarian Oops Shopping List Challenges ------------ None Game ------ Seed GodScanMultirail Manual? 0 Play Time 00:48:56 Cumulative 5.6 hours Start 2022.12.18 @ 01:22:29 End 2022.12.19 @ 23:00:32 Sessions 3 Manual Loads 0 Difficulty Rogue Special Mode None Game No. 11 Rogue 10 Adventurer 0 Explorer 1 Win Type - Total 0 Types 0/0/0/0/0/0/0/0/0 Lore% 14 Gallery% 10 Achievement% 12 Wizard Run 0 Options --------- ASCII 1 Keyboard 0 Movement Arrows Keybinds 0 Fullscreen 0 Font 16/SmallcapsGlow Map View 76x50 Tactical HUD 1 Map Filters NONE Filters NONE Steam 1 RUN: a55070e2-0b98-4115-a2ac-0bd5c53f7b6a